fUSD/lending_fUSD_20241104
["ID","MTS","AMOUNT","RATE_DAILY","PERIOD"]
[341274607,1730736673588,-5086.76890105,0.00039178,2]
[341274608,1730736673879,-500.0,0.00035616,2]
[341274609,1730736673890,-23.38999,0.00035616,2]
[341274610,1730736673954,-375.14302337,0.00035616,2]
[341274626,1730736821351,-154.19,0.00015342,2]
[341274627,1730736821372,-150.0,0.00018112,2]
[341274628,1730736821392,-250.0,0.00019725,2]
[341274629,1730736821411,-412.73,0.00034,10]
[341274630,1730736821431,-613.17,0.00035208,2]
[341274631,1730736821451,-164.18621817,0.00035415,7]
[341274632,1730736821470,-37818.9099,0.00035416,2]
[341274633,1730736821489,-100000.0,0.00035416,2]
[341274634,1730736821508,-1000.0,0.00035416,2]
[341274635,1730736821529,-245.89819964,0.00035615,7]
[341274636,1730736821548,-127.51569478,0.00035616,2]
[341274637,1730736821570,-500.0,0.00035616,2]
[341274638,1730736821591,-500.0,0.00035616,2]
[341274639,1730736821611,-500.0,0.00035616,2]
[341274640,1730736821631,-511.47556235,0.00035616,2]
[341274641,1730736821653,-500.0,0.00035616,2]
[341274642,1730736821674,-500.0,0.00035616,2]
[341274643,1730736821697,-500.0,0.00035616,2]
[341274644,1730736821718,-500.0,0.00035616,2]
[341274645,1730736821738,-500.0,0.00035616,2]
[341274646,1730736821759,-500.0,0.00035616,2]
[341274647,1730736821779,-500.0,0.00035616,2]
[341274648,1730736821802,-518.92851654,0.00035616,2]
[341274649,1730736821825,-500.0,0.00035616,2]
[341274650,1730736821846,-513.66526127,0.00035616,2]
[341274651,1730736821867,-500.0,0.00035616,2]
[341274652,1730736821889,-500.0,0.00035616,2]
[341274653,1730736821916,-500.0,0.00035616,2]
[341274654,1730736821937,-521.74435302,0.00035616,2]
[341274655,1730736821961,-500.0,0.00035616,2]
[341274656,1730736821984,-500.0,0.00035616,2]
[341274657,1730736822006,-500.0,0.00035616,2]
[341274658,1730736822027,-500.0,0.00035616,2]
[341274659,1730736822049,-500.0,0.00035616,2]
[341274660,1730736822071,-500.0,0.00035616,2]
[341274661,1730736822094,-500.0,0.00035616,2]
[341274662,1730736822114,-500.0,0.00035616,2]
[341274663,1730736822136,-500.0,0.00035616,2]
[341274664,1730736822157,-500.0,0.00035616,2]
[341274665,1730736822179,-500.0,0.00035616,2]
[341274666,1730736822199,-558.36757297,0.00035616,2]
[341274667,1730736822220,-509.68390863,0.00035616,2]
[341274668,1730736822241,-500.0,0.00035616,2]
[341274669,1730736822263,-500.0,0.00035616,2]
[341274670,1730736822284,-500.0,0.00035616,2]
[341274671,1730736822304,-500.0,0.00035616,2]
[341274672,1730736822324,-500.19387838,0.00035616,2]
[341274673,1730736822348,-631.15,0.00035616,2]
[341274674,1730736822370,-500.0,0.00035616,2]
[341274675,1730736822391,-500.0,0.00035616,2]
[341274676,1730736822411,-500.0,0.00035616,2]
[341274677,1730736822431,-500.0,0.00035616,2]
[341274678,1730736822451,-500.0,0.00035616,2]
[341274679,1730736822473,-500.0,0.00035616,2]
[341274680,1730736822494,-500.0,0.00035616,2]
[341274681,1730736822514,-500.0,0.00035616,2]
[341274682,1730736822534,-500.0,0.00035616,2]
[341274683,1730736822558,-500.0,0.00035616,2]
[341274684,1730736822582,-500.0,0.00035616,2]
[341274685,1730736822604,-500.0,0.00035616,2]
[341274686,1730736822785,-500.0,0.00035616,2]
[341274687,1730736822805,-505.89424594,0.00035616,2]
[341274688,1730736822826,-500.0,0.00035616,2]
[341274689,1730736822847,-500.0,0.00035616,2]
[341274690,1730736822867,-500.0,0.00035616,2]
[341274691,1730736822887,-500.0,0.00035616,2]
[341274692,1730736822909,-500.0,0.00035616,2]
[341274693,1730736822929,-500.0,0.00035616,2]
[341274694,1730736822949,-500.0,0.00035616,2]
[341274695,1730736822969,-500.0,0.00035616,2]
[341274696,1730736822991,-634.15503315,0.00035616,2]
[341274697,1730736823013,-4721.6,0.00035616,2]
[341274698,1730736823032,-500.0,0.00035616,2]
[341274699,1730736823053,-500.0,0.00035616,2]
[341274700,1730736823074,-500.0,0.00035616,2]
[341274701,1730736823095,-512.34,0.00035616,2]
[341274702,1730736823116,-500.0,0.00035616,2]
[341274703,1730736823137,-500.0,0.00035616,2]
[341274704,1730736823160,-500.0,0.00035616,2]
[341274705,1730736823181,-500.0,0.00035616,2]
[341274706,1730736823201,-500.0,0.00035616,2]
[341274707,1730736823221,-500.0,0.00035616,2]
[341274708,1730736823242,-500.0,0.00035616,2]
[341274709,1730736823263,-535.60827673,0.00035616,2]
[341274710,1730736823283,-500.0,0.00035616,2]
[341274711,1730736823304,-500.0,0.00035616,2]
[341274712,1730736823324,-500.0,0.00035616,2]
[341274713,1730736823346,-500.0,0.00035616,2]
[341274714,1730736823367,-500.0,0.00035616,2]
[341274715,1730736823388,-500.0,0.00035616,2]
[341274716,1730736823408,-500.0,0.00035616,2]
[341274717,1730736823428,-621.86447432,0.00035616,2]
[341274718,1730736823448,-500.0,0.00035616,2]
[341274719,1730736823469,-500.0,0.00035616,2]
[341274720,1730736823491,-500.0,0.00035616,2]
[341274721,1730736823511,-500.0,0.00035616,2]
[341274722,1730736823531,-500.0,0.00035616,2]
[341274723,1730736823552,-544.04015464,0.00035616,2]
[341274724,1730736823573,-500.0,0.00035616,2]
[341274725,1730736823602,-515.28296473,0.00035616,2]
[341274726,1730736823622,-500.0,0.00035616,2]
[341274727,1730736823643,-500.0,0.00035616,2]
[341274728,1730736823664,-500.0,0.00035616,2]
[341274729,1730736823685,-500.0,0.00035616,2]
[341274730,1730736823707,-500.0,0.00035616,2]
[341274731,1730736823727,-521.01675943,0.00035616,2]
[341274732,1730736823751,-500.0,0.00035616,2]
[341274733,1730736823775,-500.0,0.00035616,2]
[341274734,1730736823799,-500.0,0.00035616,2]
[341274735,1730736823819,-500.0,0.00035616,2]
[341274736,1730736823841,-159.98970082,0.00035616,2]
[341274737,1730736823862,-500.0,0.00035616,2]
[341274738,1730736823883,-500.0,0.00035616,2]
[341274739,1730736823905,-500.0,0.00035616,2]
[341274740,1730736823927,-524.31,0.00035616,2]
[341274741,1730736823947,-500.0,0.00035616,2]
[341274742,1730736823971,-500.0,0.00035616,2]
[341274743,1730736823994,-500.0,0.00035616,2]
[341274744,1730736824015,-253.57744579,0.00035616,2]
[341274745,1730736824036,-500.0,0.00035616,2]
[341274746,1730736824056,-503.71485576,0.00035616,2]
[341274747,1730736824078,-524.62846535,0.00035616,2]
[341274748,1730736824099,-489.37645555,0.00035616,2]
[341274749,1730736824120,-500.0,0.00035616,2]
[341274750,1730736824141,-1148.38,0.00035616,2]
[341274751,1730736824163,-500.0,0.00035616,2]
[341274752,1730736824185,-494.49697178,0.00035616,2]
[341274753,1730736824206,-500.0,0.00035616,2]
[341274754,1730736824228,-500.0,0.00035616,2]
[341274755,1730736824248,-538.0827899,0.00035616,2]
[341274756,1730736824270,-500.0,0.00035616,2]
[341274757,1730736824291,-500.0,0.00035616,2]
[341274758,1730736824313,-574.12682272,0.00035616,2]
[341274759,1730736824333,-500.0,0.00035616,2]
[341274760,1730736824353,-500.0,0.00035616,2]
[341274761,1730736824374,-500.0,0.00035616,2]
[341274762,1730736824395,-500.0,0.00035616,2]
[341274763,1730736824416,-586.59217379,0.00035616,2]
[341274764,1730736824437,-500.0,0.00035616,2]
[341274765,1730736824458,-500.0,0.00035616,2]
[341274766,1730736824478,-580.54,0.00035616,2]
[341274767,1730736824498,-500.0,0.00035616,2]
[341274768,1730736824518,-531.32141009,0.00035616,2]
[341274769,1730736824538,-500.0,0.00035616,2]
[341274770,1730736824558,-631.54700652,0.00035616,2]
[341274771,1730736824578,-500.0,0.00035616,2]
[341274772,1730736824600,-500.0,0.00035616,2]
[341274773,1730736824620,-309.96555099,0.00035616,2]
[341274774,1730736824640,-500.0,0.00035616,2]
[341274775,1730736824661,-500.0,0.00035616,2]
[341274776,1730736824681,-500.0,0.00035616,2]
[341274777,1730736824701,-500.0,0.00035616,2]
[341274778,1730736824721,-249.66522075,0.00035616,2]
[341274779,1730736824742,-1041.2,0.00035616,2]
[341274780,1730736824762,-543.83,0.00035616,2]
[341274781,1730736824786,-519.36958193,0.00035616,2]
[341274782,1730736824809,-500.0,0.00035616,2]
[341274783,1730736824831,-500.0,0.00035616,2]
[341274784,1730736824853,-165.26202252,0.00035616,2]
[341274785,1730736824875,-509.88381016,0.00035616,2]
[341274786,1730736824900,-500.0,0.00035616,2]
[341274787,1730736824925,-500.0,0.00035616,2]
[341274788,1730736824949,-517.32207988,0.00035616,2]
[341274789,1730736824970,-535.80151473,0.00035616,2]
[341274790,1730736824993,-500.0,0.00035616,2]
[341274791,1730736825015,-500.0,0.00035616,2]
[341274792,1730736825040,-500.0,0.00035616,2]
[341274793,1730736825060,-512.09050041,0.00035616,2]
[341274794,1730736825081,-521.9573249,0.00035616,2]
[341274795,1730736825102,-504.37491377,0.00035616,2]
[341274796,1730736825123,-500.0,0.00035616,2]
[341274797,1730736825143,-500.0,0.00035616,2]
[341274798,1730736825165,-500.0,0.00035616,2]
[341274799,1730736825186,-500.0,0.00035616,2]
[341274800,1730736825206,-708.27,0.00035616,2]
[341274801,1730736825226,-525.92901024,0.00035616,2]
[341274802,1730736825246,-451.21659355,0.00035616,2]
[341274803,1730736825267,-500.0,0.00035616,2]
[341274804,1730736825287,-500.0,0.00035616,2]
[341274805,1730736825308,-540.83542868,0.00035616,2]
[341274806,1730736825329,-526.47910992,0.00035616,2]
[341274807,1730736825351,-500.0,0.00035616,2]
[341274808,1730736825371,-500.0,0.00035616,2]
[341274809,1730736825391,-500.0,0.00035616,2]
[341274810,1730736825411,-175.63100081,0.00035616,2]
[341274811,1730736825434,-500.0,0.00035616,2]
[341274812,1730736825454,-500.0,0.00035616,2]
[341274813,1730736825475,-500.0,0.00035616,2]
[341274814,1730736825495,-500.0,0.00035616,2]
[341274815,1730736825517,-500.0,0.00035616,2]
[341274816,1730736825539,-500.0,0.00035616,2]
[341274817,1730736825561,-501.5264596,0.00035616,2]
[341274818,1730736825582,-500.0,0.00035616,2]
[341274819,1730736825606,-500.0,0.00035616,2]
[341274820,1730736825627,-500.0,0.00035616,2]
[341274821,1730736825650,-1022.81,0.00035616,2]
[341274822,1730736825670,-503.00077062,0.00035616,2]
[341274823,1730736825690,-516.98002888,0.00035616,2]
[341274824,1730736825711,-202.50277262,0.00035616,2]
[341274825,1730736825734,-866.69,0.00035616,2]
[341274826,1730736825756,-500.0,0.00035616,2]
[341274827,1730736825777,-500.0,0.00035616,2]
[341274828,1730736825797,-500.0,0.00035616,2]
[341274829,1730736825817,-501.62265085,0.00035616,2]
[341274830,1730736825839,-154.19,0.00035616,2]
[341274831,1730736825859,-500.0,0.00035889,2]
[341274832,1730736825880,-2377.98,0.00035889,2]
[341274833,1730736825900,-745.06,0.00035889,2]
[341274834,1730736825925,-500.0,0.00035889,2]
[341274835,1730736825947,-2939.45,0.00035889,2]
[341274836,1730736825967,-505.49586249,0.0003589,2]
[341274837,1730736826132,-538.97978787,0.0003589,2]
[341274838,1730736826157,-500.0,0.0003589,2]
[341274839,1730736826178,-500.0,0.0003589,2]
[341274840,1730736826202,-500.0,0.0003589,2]
[341274841,1730736826223,-500.0,0.0003589,2]
[341274842,1730736826243,-500.0,0.0003589,2]
[341274843,1730736826264,-500.0,0.0003589,2]
[341274844,1730736826284,-508.95727014,0.0003589,2]
[341274845,1730736826306,-500.0,0.0003589,2]
[341274846,1730736826328,-500.0,0.0003589,2]
[341274847,1730736826351,-500.0,0.0003589,2]
[341274848,1730736826374,-500.0,0.0003589,2]
[341274849,1730736826396,-419.52549422,0.0003589,2]
[341274850,1730736826418,-534.82096517,0.0003589,2]
[341274851,1730736826440,-500.0,0.0003589,2]
[341274852,1730736826462,-512.69452363,0.0003589,2]
[341274853,1730736826483,-259.66310821,0.0003589,2]
[341274854,1730736826506,-500.0,0.0003589,2]
[341274855,1730736826528,-500.0,0.0003589,2]
[341274856,1730736826550,-500.0,0.0003589,2]
[341274857,1730736826571,-510.59047531,0.0003589,2]
[341274858,1730736826593,-500.0,0.0003589,2]
[341274859,1730736826614,-500.0,0.0003589,2]
[341274860,1730736826638,-500.0,0.0003589,2]
[341274861,1730736826662,-511.2536474,0.0003589,2]
[341274862,1730736826686,-523.30795647,0.0003589,2]
[341274863,1730736826710,-500.0,0.0003589,2]
[341274864,1730736826732,-517.98958231,0.0003589,2]
[341274865,1730736826753,-500.0,0.0003589,2]
[341274866,1730736826778,-518.24410317,0.0003589,2]
[341274867,1730736826802,-500.0,0.0003589,2]
[341274868,1730736826824,-500.0,0.0003589,2]
[341274869,1730736826847,-500.0,0.0003589,2]
[341274870,1730736826869,-500.0,0.0003589,2]
[341274871,1730736826892,-500.0,0.0003589,2]
[341274872,1730736826918,-500.0,0.0003589,2]
[341274873,1730736826941,-500.0,0.0003589,2]
[341274874,1730736826966,-500.0,0.0003589,2]
[341274875,1730736826987,-205.15137049,0.0003589,2]
[341274876,1730736827010,-500.0,0.0003589,2]
[341274877,1730736827034,-500.0,0.0003589,2]
[341274878,1730736827058,-4721.6,0.0003589,2]
[341274879,1730736827082,-503.74039043,0.0003589,2]
[341274880,1730736827105,-543.03803554,0.0003589,2]
[341274881,1730736827126,-500.0,0.0003589,2]
[341274882,1730736827146,-629.00508556,0.0003589,2]
[341274883,1730736827168,-500.0,0.0003589,2]
[341274884,1730736827191,-528.23237362,0.0003589,2]
[341274885,1730736827215,-522.76118288,0.0003589,2]
[341274886,1730736827238,-500.0,0.0003589,2]
[341274887,1730736827259,-567.99938583,0.0003589,2]
[341274888,1730736827281,-523.17407374,0.0003589,2]
[341274889,1730736827302,-500.0,0.0003589,2]
[341274890,1730736827324,-513.89309079,0.0003589,2]
[341274891,1730736827350,-515.3505421,0.0003589,2]
[341274892,1730736827372,-500.0,0.0003589,2]
[341274893,1730736827393,-500.0,0.0003589,2]
[341274894,1730736827414,-528.37225912,0.0003589,2]
[341274895,1730736827435,-500.0,0.0003589,2]
[341274896,1730736827456,-500.0,0.0003589,2]
[341274897,1730736827478,-500.0,0.0003589,2]
[341274898,1730736827502,-507.72336584,0.0003589,2]
[341274899,1730736827524,-529.86997907,0.0003589,2]
[341274900,1730736827546,-500.0,0.0003589,2]
[341274901,1730736827568,-538.05808541,0.0003589,2]
[341274902,1730736827594,-500.0,0.0003589,2]
[341274903,1730736827616,-500.0,0.0003589,2]
[341274904,1730736827637,-500.0,0.0003589,2]
[341274905,1730736827659,-500.0,0.0003589,2]
[341274906,1730736827680,-500.0,0.0003589,2]
[341274907,1730736827700,-500.0,0.0003589,2]
[341274908,1730736827722,-1148.38,0.0003589,2]
[341274909,1730736827744,-267.22,0.0003589,2]
[341274910,1730736827765,-538.53430405,0.0003589,2]
[341274911,1730736827786,-349.62842775,0.0003589,2]
[341274912,1730736827808,-500.0,0.0003589,2]
[341274913,1730736827829,-352.91330412,0.0003589,2]
[341274914,1730736827851,-500.0,0.0003589,2]
[341274915,1730736827872,-500.0,0.0003589,2]
[341274916,1730736827893,-500.0,0.0003589,2]
[341274917,1730736827917,-500.0,0.0003589,2]
[341274918,1730736827938,-500.0,0.0003589,2]
[341274919,1730736827961,-580.54,0.0003589,2]
[341274920,1730736827983,-500.0,0.0003589,2]
[341274921,1730736828006,-500.0,0.0003589,2]
[341274922,1730736828027,-500.0,0.0003589,2]
[341274923,1730736828050,-509.19032287,0.0003589,2]
[341274924,1730736828073,-1041.2,0.0003589,2]
[341274925,1730736828097,-500.0,0.0003589,2]
[341274926,1730736828119,-500.0,0.0003589,2]
[341274927,1730736828143,-500.0,0.0003589,2]
[341274928,1730736828164,-500.0,0.0003589,2]
[341274929,1730736828187,-500.0,0.0003589,2]
[341274930,1730736828210,-500.0,0.0003589,2]
[341274931,1730736828232,-500.0,0.0003589,2]
[341274932,1730736828256,-500.0,0.0003589,2]
[341274933,1730736828279,-500.0,0.0003589,2]
[341274934,1730736828304,-708.27,0.0003589,2]
[341274935,1730736828326,-500.0,0.0003589,2]
[341274936,1730736828350,-500.0,0.0003589,2]
[341274937,1730736828373,-500.0,0.0003589,2]
[341274938,1730736828396,-500.0,0.0003589,2]
[341274939,1730736828421,-500.0,0.0003589,2]
[341274940,1730736828444,-500.0,0.0003589,2]
[341274941,1730736828467,-500.0,0.0003589,2]
[341274942,1730736828490,-581.04293759,0.0003589,2]
[341274943,1730736828512,-500.0,0.0003589,2]
[341274944,1730736828535,-500.0,0.0003589,2]
[341274945,1730736828556,-500.0,0.0003589,2]
[341274946,1730736828581,-500.0,0.0003589,2]
[341274947,1730736828605,-500.0,0.0003589,2]
[341274948,1730736828628,-1022.81,0.0003589,2]
[341274949,1730736828652,-866.69,0.0003589,2]
[341274950,1730736828675,-546.18084765,0.0003589,2]
[341274951,1730736828697,-503.87884744,0.0003589,2]
[341274952,1730736828719,-500.0,0.0003589,2]
[341274953,1730736828741,-500.0,0.00036163,2]
[341274954,1730736828763,-2377.98,0.00036163,2]
[341274955,1730736828785,-745.06,0.00036163,2]
[341274956,1730736828809,-500.0,0.00036163,2]
[341274957,1730736828832,-2939.45,0.00036163,2]
[341274958,1730736828855,-500.0,0.00036164,2]
[341274959,1730736828877,-500.0,0.00036164,2]
[341274960,1730736828901,-500.0,0.00036164,2]
[341274961,1730736828926,-500.0,0.00036164,2]
[341274962,1730736828949,-500.0,0.00036164,2]
[341274963,1730736828972,-500.0,0.00036164,2]
[341274964,1730736828996,-500.0,0.00036164,2]
[341274965,1730736829019,-500.0,0.00036164,2]
[341274966,1730736829042,-500.0,0.00036164,2]
[341274967,1730736829065,-524.9755924,0.00036164,2]
[341274968,1730736829089,-500.0,0.00036164,2]
[341274969,1730736829110,-536.58401496,0.00036164,2]
[341274970,1730736829132,-500.0,0.00036164,2]
[341274971,1730736829152,-529.35029173,0.00036164,2]
[341274972,1730736829174,-500.0,0.00036164,2]
[341274973,1730736829196,-517.1698711,0.00036164,2]
[341274974,1730736829217,-500.0,0.00036164,2]
[341274975,1730736829238,-500.0,0.00036164,2]
[341274976,1730736829260,-500.0,0.00036164,2]
[341274977,1730736829281,-215.84915241,0.00036164,2]
[341274978,1730736829304,-500.0,0.00036164,2]
[341274979,1730736829326,-500.0,0.00036164,2]
[341274980,1730736829351,-500.0,0.00036164,2]
[341274981,1730736829372,-500.0,0.00036164,2]
[341274982,1730736829394,-560.22121856,0.00036164,2]
[341274983,1730736829415,-500.0,0.00036164,2]
[341274984,1730736829437,-500.0,0.00036164,2]
[341274985,1730736829611,-177.88,0.00036164,2]
[341274986,1730736829635,-4721.6,0.00036164,2]
[341274987,1730736829660,-500.0,0.00036164,2]
[341274988,1730736829685,-500.0,0.00036164,2]
[341274989,1730736829708,-500.0,0.00036164,2]
[341274990,1730736829730,-500.0,0.00036164,2]
[341274991,1730736829754,-500.0,0.00036164,2]
[341274992,1730736829775,-530.92905351,0.00036164,2]
[341274993,1730736829797,-500.0,0.00036164,2]
[341274994,1730736829819,-500.0,0.00036164,2]
[341274995,1730736829843,-500.0,0.00036164,2]
[341274996,1730736829864,-500.0,0.00036164,2]
[341274997,1730736829886,-500.0,0.00036164,2]
[341274998,1730736829911,-500.0,0.00036164,2]
[341274999,1730736829932,-500.0,0.00036164,2]
[341275000,1730736829953,-500.0,0.00036164,2]
[341275001,1730736829975,-500.0,0.00036164,2]
[341275002,1730736830001,-1148.38,0.00036164,2]
[341275003,1730736830023,-500.0,0.00036164,2]
[341275004,1730736830045,-500.0,0.00036164,2]
[341275005,1730736830067,-523.83869999,0.00036164,2]
[341275006,1730736830092,-500.0,0.00036164,2]
[341275007,1730736830117,-500.0,0.00036164,2]
[341275008,1730736830140,-500.0,0.00036164,2]
[341275009,1730736830162,-580.54,0.00036164,2]
[341275010,1730736830184,-500.0,0.00036164,2]
[341275011,1730736830207,-500.0,0.00036164,2]
[341275012,1730736830229,-500.0,0.00036164,2]
[341275013,1730736830252,-1041.2,0.00036164,2]
[341275014,1730736830274,-500.0,0.00036164,2]
[341275015,1730736830296,-500.0,0.00036164,2]
[341275016,1730736830318,-500.0,0.00036164,2]
[341275017,1730736830347,-500.0,0.00036164,2]
[341275018,1730736830372,-500.0,0.00036164,2]
[341275019,1730736830395,-500.0,0.00036164,2]
[341275020,1730736830416,-500.0,0.00036164,2]
[341275021,1730736830439,-500.0,0.00036164,2]
[341275022,1730736830462,-500.0,0.00036164,2]
[341275023,1730736830485,-708.27,0.00036164,2]
[341275024,1730736830507,-500.0,0.00036164,2]
[341275025,1730736830528,-500.0,0.00036164,2]
[341275026,1730736830549,-500.0,0.00036164,2]
[341275027,1730736830572,-500.0,0.00036164,2]
[341275028,1730736830601,-381.30928791,0.00036164,2]
[341275029,1730736830624,-500.0,0.00036164,2]
[341275030,1730736830645,-438.25041058,0.00036164,2]
[341275044,1730737011600,-150.0,0.0001611,2]
[341275046,1730737285051,157.06,0.00015342,2]
[341275048,1730737508586,2309.94,0.00016,2]
[341275103,1730737685109,300000.0,0.00015,2]
[341275155,1730737831640,-0.39347575,0.0001599,2]
[341275161,1730737831840,-164.70652425,0.0001599,2]
[341275162,1730737831852,-165.1,0.0001599,2]
[341275163,1730737831862,-172.12873975,0.00015999,2]
[341275164,1730737831872,-1725.95913181,0.00016,2]
[341275173,1730737837703,-121485.90494935,0.00016,2]
[341275175,1730737837920,-3997.83508,0.00016,2]
[341275179,1730737839659,-14804.42710202,0.00016,2]
[341275180,1730737839806,-2721392.08557316,0.00016,2]
[341275181,1730737839819,-303421.68001901,0.00016,2]
[341275182,1730737839830,-1195.669475,0.00016,2]
[341275183,1730737839841,-4377.81776012,0.00016,2]
[341275184,1730737839887,-14080.658,0.00016,2]
[341275185,1730737839898,-687.3,0.00016,2]
[341275186,1730737839909,-2853.08354492,0.00016,2]
[341275187,1730737839920,-489.79662631,0.00016,2]
[341275188,1730737839945,-1770.96914953,0.00016,2]
[341275189,1730737839956,-300.18854205,0.00016,2]
[341275200,1730737842612,-175.99,0.00015342,2]
[341275201,1730737842621,-5395.19047935,0.00016,2]
[341275202,1730737842632,-5005.84828178,0.00016,2]
[341275203,1730737842668,-68399.99999998,0.00016,2]
[341275204,1730737842680,-3486.05,0.00016,2]
[341275205,1730737842691,-32467.21292034,0.00016,2]
[341275206,1730737842780,-162667.78890817,0.00016,2]
[341275207,1730737842838,-3142.8034147,0.00016,2]
[341275208,1730737842895,-168772.61268284,0.00016,2]
[341275213,1730737845834,-503.92932809,0.00016,2]
[341275293,1730737848697,-57896.216787,0.00016,2]
[341275294,1730738066634,-160.13168098,0.00015884,2]
[341275295,1730738066656,-211.09450723,0.00015984,2]
[341275296,1730738066679,-164.71942873,0.00015984,2]
[341275297,1730738066701,-181.84937145,0.00015984,2]
[341275298,1730738066724,-152.00669525,0.00015984,2]
[341275299,1730738066746,-174.02913254,0.00015984,2]
[341275300,1730738066768,-5396.4014734,0.00015984,2]
[341275301,1730738066789,-891.80170492,0.00015984,2]
[341275302,1730738066812,-1292667.9660055,0.00016,2]
[341275305,1730738207390,-2000000.0,0.00016,2]
[341275306,1730738305019,-164.18621817,0.00015999,2]
[341275307,1730738305044,-199835.81378183,0.00016,2]
[341275311,1730738375472,-158.44,0.00015342,2]
[341275312,1730738375495,-297.752,0.0001568,2]
[341275313,1730738375520,-385.81322416,0.00015973,2]
[341275314,1730738375546,-219157.99477584,0.00016,2]
[341275320,1730738754145,-12857.826549,0.00015541,2]
[341275321,1730738754171,-300.0,0.0001562,2]
[341275322,1730738754194,-8300.11242328,0.0001595,2]
[341275323,1730738754217,-160.15405834,0.00015973,2]
[341275324,1730738754240,-5654.65290914,0.00015985,2]
[341275325,1730738754265,-1750.71426192,0.00015985,2]
[341275326,1730738754289,-179.19595938,0.00015985,2]
[341275327,1730738754311,-166.88031281,0.0001599,2]
[341275328,1730738754334,-154.07,0.0001599,2]
[341275329,1730738754357,-154.07,0.0001599,2]
[341275330,1730738754379,-154.07,0.0001599,2]
[341275331,1730738754404,-154.07,0.0001599,2]
[341275332,1730738754426,-154.07,0.0001599,2]
[341275333,1730738754448,-300.0,0.00015998,2]
[341275334,1730738754472,-1263.37189023,0.00015999,5]
[341275335,1730738754494,-202.75567051,0.00015999,2]
[341275336,1730738754518,-500.0,0.00015999,2]
[341275337,1730738754541,-334.7510084,0.00015999,2]
[341275338,1730738754564,-500.0,0.00015999,2]
[341275339,1730738754591,-500.0,0.00015999,2]
[341275340,1730738754613,-500.0,0.00015999,2]
[341275341,1730738754637,-500.0,0.00015999,2]
[341275342,1730738754661,-500.0,0.00015999,2]
[341275343,1730738754684,-509.45965353,0.00015999,2]
[341275344,1730738754706,-170.43,0.00015999,2]
[341275345,1730738754733,-1790010.11390531,0.00016,2]
[341275387,1730739031882,-155.86,0.00015342,2]
[341275388,1730739031892,-840.57750058,0.0001542,2]
[341275389,1730739031902,-840.57750056,0.00015477,2]
[341275390,1730739031911,-164.17133252,0.0001552,2]
[341275391,1730739031921,-840.57750056,0.00015534,2]
[341275392,1730739031930,-200.4017053,0.00015634,2]
[341275393,1730739031939,-358.54092679,0.00015688,2]
[341275394,1730739031949,-200.40170528,0.00015767,2]
[341275395,1730739031958,-200.40170528,0.000159,2]
[341275396,1730739031967,-300.0,0.00015999,2]
[341275397,1730739031976,-32909.66869654,0.00016,2]
[341275398,1730739031985,-3010.986,0.00016,2]
[341275399,1730739031994,-171.11811205,0.00016085,2]
[341275400,1730739032004,-150.0,0.00016281,2]
[341275401,1730739032013,-154.46,0.00016523,2]
[341275402,1730739032022,-510.0,0.00017119,2]